fUSD/lending_fUSD_20250410
["ID","MTS","AMOUNT","RATE_DAILY","PERIOD"]
[357656197,1744282148292,-160.93,0.00035,2]
[357656198,1744282148314,-400.0,0.00035898,2]
[357656199,1744282148335,-3695.40072006,0.00035899,2]
[357656200,1744282150088,-219.45964964,0.00035616,5]
[357656201,1744282150113,-152.10540459,0.00035873,5]
[357656202,1744282150134,-600.30782537,0.00035899,2]
[357656203,1744282162105,-154.84758003,0.00035799,2]
[357656204,1744282162128,-11188.45090937,0.00035899,2]
[357656205,1744282162150,-11305.4521106,0.00035899,2]
[357656206,1744282171103,-153.93511529,0.00035899,2]
[357656207,1744282172078,-1913.04701184,0.00035899,2]
[357656238,1744282232403,-2315.90661974,0.00035899,2]
[357656285,1744282233237,-36.81883998,0.00035899,2]
[357656293,1744282238612,-788.02025648,0.00035899,2]
[357656294,1744282238622,-1140.0,0.000375,3]
[357656295,1744282238632,-300.0,0.00038,2]
[357656296,1744282238642,-5558.0,0.000381,5]
[357656297,1744282238652,-895.11,0.00038228,2]
[357656298,1744282238662,-300.0,0.0003838,2]
[357656299,1744282238673,-264.94,0.00038443,2]
[357656300,1744282238683,-963.04915969,0.00038545,2]
[357656301,1744282238692,-300.0,0.0003876,2]
[357656302,1744282238702,-300.0,0.0003914,2]
[357656303,1744282238711,-200.0,0.00039293,2]
[357656304,1744282238721,-300.0,0.0003952,2]
[357656305,1744282238730,-250.0,0.00039811,2]
[357656306,1744282238740,-300.0,0.000399,4]
[357656307,1744282238750,-786.67,0.00039909,30]
[357656308,1744282238760,-827.64,0.00039954,2]
[357656309,1744282238770,-282.8,0.00039971,2]
[357656310,1744282238780,-3406.33499542,0.0004,4]
[357656311,1744282238790,-158.32,0.00040002,2]
[357656312,1744282238801,-2457.99,0.00040102,2]
[357656313,1744282238810,-202.65,0.00040163,2]
[357656314,1744282238820,-328.16785651,0.00040213,2]
[357656315,1744282238830,-8615.56157059,0.00040223,2]
[357656316,1744282238840,-152.0,0.000403,3]
[357656317,1744282238850,-500.0,0.000403,5]
[357656318,1744282238859,-500.0,0.000403,5]
[357656319,1744282238869,-500.0,0.000403,5]
[357656320,1744282238879,-895.11,0.00040492,2]
[357656321,1744282238888,-200.0,0.00040565,2]
[357656322,1744282238898,-150.0,0.00040578,2]
[357656323,1744282238909,-214.36,0.00041,2]
[357656324,1744282238922,-160.0,0.00041,14]
[357656325,1744282238937,-150.0,0.00041096,2]
[357656327,1744282238947,-200.0,0.00041096,20]
[357656329,1744282238957,-200.0,0.00041096,20]
[357656331,1744282238967,-200.0,0.00041096,20]
[357656333,1744282238976,-167.52,0.00041131,2]
[357656335,1744282238985,-152.0,0.00041133,4]
[357656336,1744282238995,-305.19,0.0004137,5]
[357656338,1744282239004,-315.5523,0.00041447,2]
[357656339,1744282239014,-5907.05215399,0.0004146,2]
[357656340,1744282239023,-3227.0,0.00041471,2]
[357656341,1744282239033,-301.53,0.00041481,5]
[357656342,1744282239042,-3227.0,0.00041481,2]
[357656344,1744282239051,-3227.0,0.00041492,2]
[357656348,1744282239255,-500.0,0.00041502,7]
[357656349,1744282239276,-500.0,0.00041502,7]
[357656350,1744282239285,-500.0,0.00041502,7]
[357656351,1744282239295,-500.0,0.00041502,7]
[357656352,1744282239304,-500.0,0.00041502,7]
[357656353,1744282239313,-440.5768748,0.00041502,7]
[357656354,1744282239323,-500.0,0.00041502,7]
[357656355,1744282239332,-500.0,0.00041502,7]
[357656356,1744282239341,-500.0,0.00041502,7]
[357656357,1744282239351,-500.0,0.00041502,7]
[357656358,1744282239360,-500.0,0.00041502,7]
[357656359,1744282239370,-500.0,0.00041502,7]
[357656360,1744282239381,-500.0,0.00041502,7]
[357656361,1744282239391,-500.0,0.00041502,7]
[357656362,1744282239400,-500.0,0.00041502,7]
[357656363,1744282239411,-500.0,0.00041502,7]
[357656364,1744282239420,-3227.0,0.00041503,2]
[357656365,1744282239429,-3227.0,0.00041514,2]
[357656366,1744282239438,-3227.0,0.00041525,2]
[357656367,1744282239448,-3227.0,0.00041536,2]
[357656368,1744282239458,-302.78,0.00041545,5]
[357656369,1744282239468,-3227.0,0.00041547,2]
[357656370,1744282239477,-3227.0,0.00041558,2]
[357656371,1744282239486,-3227.0,0.00041569,2]
[357656372,1744282239495,-410.33492546,0.00041573,10]
[357656373,1744282239505,-500.0,0.00041573,10]
[357656374,1744282239514,-3227.0,0.0004158,2]
[357656375,1744282239523,-3227.0,0.0004159,2]
[357656376,1744282239533,-3227.0,0.00041601,2]
[357656377,1744282239542,-3227.0,0.00041612,2]
[357656378,1744282239552,-3227.0,0.00041623,2]
[357656379,1744282239562,-3227.0,0.00041634,2]
[357656380,1744282239571,-3227.0,0.00041645,2]
[357656381,1744282239580,-3227.0,0.00041656,2]
[357656382,1744282239590,-3227.0,0.00041667,2]
[357656383,1744282239599,-3227.0,0.00041678,2]
[357656384,1744282239609,-152.0,0.00041966,5]
[357656385,1744282239618,-500.0,0.00041978,2]
[357656386,1744282239628,-200.0,0.00041997,2]
[357656387,1744282239637,-494.57,0.00042001,2]
[357656388,1744282239646,-13806.37,0.00042015,2]
[357656389,1744282239656,-305.94,0.00042021,5]
[357656390,1744282239666,-3980.68223743,0.00042062,15]
[357656391,1744282239675,-1000.0,0.00042126,120]
[357656392,1744282239686,-252.77,0.00042162,2]
[357656393,1744282239695,-150.0,0.00042177,2]
[357656394,1744282239705,-168.134,0.00042202,63]
[357656395,1744282239714,-1898.64,0.00042202,2]
[357656396,1744282239724,-23900.0,0.00042208,2]
[357656397,1744282239733,-174.67,0.00042273,120]
[357656398,1744282239743,-4327.54,0.000424,2]
[357656399,1744282239752,-567.765797,0.00042467,4]
[357656400,1744282239762,-2776.14,0.00042603,2]
[357656401,1744282239771,-1182.86,0.00042622,2]
[357656402,1744282239780,-2985.4,0.00042642,2]
[357656403,1744282239790,-1326.0,0.00042672,2]
[357656404,1744282239800,-492.204,0.00042672,2]
[357656405,1744282239810,-907.0,0.00042672,2]
[357656406,1744282239819,-1437.0,0.00042672,2]
[357656407,1744282239828,-550.709,0.00042672,2]
[357656408,1744282239837,-151.0,0.00042672,2]
[357656409,1744282239847,-500.0,0.00042699,31]
[357656410,1744282239856,-320.6060056,0.00042699,31]
[357656411,1744282239866,-355.96447455,0.00042699,31]
[357656412,1744282239875,-500.0,0.00042699,15]
[357656413,1744282239885,-500.0,0.00042699,31]
[357656414,1744282239896,-589.28727388,0.00042699,15]
[357656415,1744282239906,-500.0,0.00042699,31]
[357656416,1744282239917,-500.0,0.00042699,31]
[357656417,1744282239926,-500.0,0.00042699,31]
[357656418,1744282239937,-1000.0,0.000427,2]
[357656419,1744282239946,-2500.0,0.000427,2]
[357656420,1744282239956,-895.11,0.00042756,2]
[357656421,1744282239967,-152.0,0.000428,6]
[357656422,1744282239977,-4327.54,0.000428,2]
[357656423,1744282239987,-4327.54,0.000428,2]
[357656424,1744282239997,-167.52,0.00042828,2]
[357656425,1744282240007,-2993.0065647,0.00042948,15]
[357656426,1744282240035,-500.0,0.00041502,7]
[357656427,1744282240045,-987.67567273,0.00042948,15]
[357656428,1744282240055,-643.1,0.00043,7]
[357656429,1744282240065,-1000.0,0.00043,2]
[357656430,1744282240075,-200.0,0.00043,120]
[357656431,1744282240085,-150.0,0.00043188,30]
[357656433,1744282240094,-150.0,0.00043188,30]
[357656435,1744282240103,-259.37,0.00043252,30]
[357656437,1744282240112,-150.0,0.00043259,2]
[357656438,1744282240121,-775.89,0.000433,33]
[357656440,1744282240131,-775.89,0.000433,33]
[357656441,1744282240142,-775.89,0.000433,33]
[357656443,1744282240151,-775.89,0.000433,33]
[357656444,1744282240161,-775.89,0.000433,33]
[357656445,1744282240170,-775.89,0.000433,33]
[357656446,1744282240179,-775.89,0.000433,33]
[357656447,1744282240188,-775.89,0.000433,33]
[357656448,1744282240197,-775.89,0.000433,33]
[357656449,1744282240207,-775.89,0.000433,33]
[357656450,1744282240216,-775.89,0.000433,33]
[357656451,1744282240226,-775.89,0.000433,33]
[357656452,1744282240235,-150.0,0.00043343,2]
[357656453,1744282240244,-184.58,0.00043357,2]
[357656454,1744282240254,-150.0,0.0004348,2]
[357656455,1744282240264,-500.0,0.000435,5]
[357656456,1744282240273,-4327.54,0.000435,2]
[357656457,1744282240283,-150.0,0.00043512,2]
[357656458,1744282240293,-150.0,0.00043523,2]
[357656459,1744282240302,-150.0,0.00043528,2]
[357656460,1744282240312,-150.0,0.00043541,2]
[357656461,1744282240321,-150.0,0.00043546,2]
[357656462,1744282240331,-150.0,0.00043547,2]
[357656463,1744282240340,-150.0,0.00043559,2]
[357656464,1744282240349,-150.0,0.00043577,2]
[357656465,1744282240359,-150.0,0.00043581,2]
[357656466,1744282240372,-150.0,0.00043586,2]
[357656467,1744282240394,-150.0,0.00043589,2]
[357656468,1744282240408,-150.0,0.00043598,2]
[357656469,1744282240425,-1000.0,0.00043599,14]
[357656470,1744282240440,-150.0,0.00043605,2]
[357656471,1744282240457,-1000.0,0.00043612,14]
[357656472,1744282240473,-1655.0,0.00043617,7]
[357656473,1744282240485,-150.0,0.00043617,2]
[357656474,1744282240500,-150.0,0.00043625,2]
[357656475,1744282240516,-150.0,0.00043625,2]
[357656476,1744282240533,-152.0,0.00043633,7]
[357656477,1744282240548,-436.6226,0.00043635,2]
[357656478,1744282240566,-1857.3998,0.00043635,120]
[357656479,1744282240582,-1000.0,0.00043635,2]
[357656480,1744282240596,-3896.40149792,0.00043635,2]
[357656481,1744282240945,-500.0,0.00041502,7]
[357656482,1744282240960,-506.32899119,0.00043635,2]
[357656510,1744282241313,-205.59508712,0.00041502,7]
[357656511,1744282241351,-189.138654,0.000374,105]
[357656512,1744282241369,-294.40491288,0.00041502,7]
[357656513,1744282241389,-500.0,0.00041502,7]
[357656514,1744282241408,-10610.62151089,0.00043635,2]
[357656515,1744282241423,-5000.0,0.00043636,120]
[357656516,1744282241439,-189.09235744,0.00043636,18]
[357656517,1744282241456,-162.41010314,0.00043636,15]
[357656518,1744282241479,-2456.9328567,0.00043636,15]
[357656519,1744282241493,-150.0,0.00043643,2]
[357656520,1744282241507,-150.0,0.00043644,2]
[357656521,1744282241522,-150.0,0.00043648,2]
[357656522,1744282241536,-150.0,0.00043657,2]
[357656523,1744282241550,-189.81609194,0.00043661,2]
[357656524,1744282241563,-150.0,0.00043667,2]
[357656525,1744282241577,-9869.67856022,0.0004367,2]
[357656526,1744282241591,-6384.32089891,0.00043671,3]
[357656527,1744282241605,-150.0,0.00043673,2]
[357656528,1744282241619,-500.0,0.00043681,120]
[357656529,1744282241633,-500.0,0.00043681,120]
[357656531,1744282241647,-500.0,0.00043681,120]
[357656533,1744282241661,-500.0,0.00043681,120]
[357656535,1744282241675,-500.0,0.00043681,120]
[357656537,1744282241689,-500.0,0.00043681,120]
[357656538,1744282241703,-500.0,0.00043681,120]
[357656539,1744282241716,-500.0,0.00043681,120]
[357656540,1744282241730,-500.0,0.00043681,120]
[357656541,1744282241744,-500.0,0.00043681,120]
[357656542,1744282241757,-500.0,0.00043681,120]
[357656543,1744282241771,-500.0,0.00043681,120]
[357656544,1744282241785,-735.0,0.00043681,120]
[357656545,1744282241798,-500.0,0.00043681,120]
[357656546,1744282241812,-500.0,0.00043681,120]
[357656547,1744282241826,-500.0,0.00043681,120]
[357656548,1744282241840,-500.0,0.00043681,120]
[357656549,1744282241854,-500.0,0.00043681,120]
[357656550,1744282241868,-500.0,0.00043681,120]
[357656551,1744282241881,-500.0,0.00043681,120]
[357656552,1744282241894,-500.0,0.00043681,120]
[357656553,1744282241908,-500.0,0.00043681,120]
[357656554,1744282241921,-500.0,0.00043681,120]
[357656555,1744282241935,-500.0,0.00043681,120]
[357656556,1744282241949,-500.0,0.00043681,120]
[357656557,1744282241962,-500.0,0.00043681,120]
[357656558,1744282241975,-500.0,0.00043681,120]
[357656559,1744282241989,-500.0,0.00043681,120]
[357656560,1744282242003,-500.0,0.00043681,120]
[357656561,1744282242016,-500.0,0.00043681,120]
[357656562,1744282242029,-500.0,0.00043681,120]
[357656563,1744282242043,-500.0,0.00043681,120]
[357656564,1744282242056,-500.0,0.00043681,120]
[357656565,1744282242070,-500.0,0.00043681,120]
[357656566,1744282242084,-500.0,0.00043681,120]
[357656567,1744282242096,-500.0,0.00043681,120]
[357656568,1744282242105,-500.0,0.00043681,120]
[357656569,1744282242115,-500.0,0.00043681,120]
[357656570,1744282242125,-500.0,0.00043681,120]
[357656571,1744282242134,-500.0,0.00043681,120]
[357656572,1744282242144,-500.0,0.00043681,120]
[357656573,1744282242460,-500.0,0.00043681,120]
[357656574,1744282242496,-500.0,0.00043681,120]
[357656575,1744282242513,-500.0,0.00043681,120]
[357656576,1744282242522,-500.0,0.00043681,120]
[357656577,1744282242532,-500.0,0.00043681,120]
[357656578,1744282242541,-500.0,0.00043681,120]
[357656579,1744282242550,-500.0,0.00043681,120]
[357656580,1744282242559,-500.0,0.00043681,120]
[357656581,1744282242568,-500.0,0.00043681,120]
[357656582,1744282242578,-500.0,0.00043681,120]
[357656583,1744282242587,-500.0,0.00043681,120]
[357656584,1744282242597,-500.0,0.00043681,120]
[357656585,1744282242606,-500.0,0.00043681,120]
[357656586,1744282242616,-500.0,0.00043681,120]
[357656587,1744282242626,-500.0,0.00043681,120]
[357656588,1744282242635,-500.0,0.00043681,120]
[357656589,1744282242644,-500.0,0.00043681,120]
[357656590,1744282242654,-500.0,0.00043681,120]
[357656591,1744282242663,-500.0,0.00043681,120]
[357656592,1744282242672,-500.0,0.00043681,120]
[357656593,1744282242682,-500.0,0.00043681,120]
[357656594,1744282242691,-500.0,0.00043681,120]
[357656595,1744282242700,-500.0,0.00043681,120]
[357656596,1744282242710,-500.0,0.00043681,120]
[357656597,1744282242720,-500.0,0.00043681,120]
[357656598,1744282242729,-500.0,0.00043681,120]
[357656599,1744282242739,-500.0,0.00043681,120]
[357656600,1744282242748,-500.0,0.00043681,120]
[357656601,1744282242757,-500.0,0.00043681,120]
[357656602,1744282242767,-500.0,0.00043681,120]
[357656603,1744282242775,-500.0,0.00043681,120]
[357656604,1744282242785,-500.0,0.00043681,120]
[357656605,1744282242795,-500.0,0.00043681,120]
[357656606,1744282242804,-500.0,0.00043681,120]
[357656607,1744282242814,-500.0,0.00043681,120]
[357656608,1744282242823,-500.0,0.00043681,120]
[357656609,1744282242832,-500.0,0.00043681,120]
[357656610,1744282242842,-500.0,0.00043681,120]
[357656611,1744282242852,-500.0,0.00043681,120]
[357656612,1744282242861,-500.0,0.00043681,120]
[357656613,1744282242871,-500.0,0.00043681,120]
[357656614,1744282242881,-500.0,0.00043681,120]
[357656615,1744282242890,-500.0,0.00043681,120]
[357656616,1744282242900,-629.0,0.00043681,120]
[357656617,1744282242909,-500.0,0.00043681,120]
[357656618,1744282242919,-500.0,0.00043681,120]
[357656619,1744282242928,-500.0,0.00043681,120]
[357656620,1744282242938,-890.5026894,0.00043681,18]
[357656621,1744282242947,-200.0,0.00043681,18]
[357656622,1744282242957,-207.4,0.00043681,18]
[357656623,1744282242967,-215.0738,0.00043681,18]
[357656624,1744282242976,-223.0315306,0.00043681,18]
[357656625,1744282242986,-231.28369723,0.00043681,18]
[357656626,1744282242995,-239.84119403,0.00043681,18]
[357656627,1744282243005,-248.71531821,0.00043681,18]
[357656628,1744282243014,-257.91778498,0.00043681,18]
[357656629,1744282243024,-267.46074303,0.00043681,18]
[357656630,1744282243034,-277.35679052,0.00043681,18]
[357656631,1744282243043,-287.61899177,0.00043681,18]
[357656632,1744282243053,-298.26089446,0.00043681,18]
[357656633,1744282243063,-309.29654756,0.00043681,18]
[357656634,1744282243073,-320.74051982,0.00043681,18]
[357656636,1744282243082,-332.60791905,0.00043681,18]
[357656637,1744282243091,-344.91441206,0.00043681,18]
[357656638,1744282243101,-357.6762453,0.00043681,18]
[357656639,1744282243110,-370.91026638,0.00043681,18]
[357656640,1744282243119,-384.63394623,0.00043681,18]
[357656642,1744282243128,-600.0,0.00043681,18]
[357656643,1744282243138,-150.0,0.00043683,2]
[357656645,1744282243147,-150.0,0.00043686,2]
[357656647,1744282243157,-683.01882305,0.00043695,14]
[357656648,1744282243166,-150.0,0.00043699,2]
[357656649,1744282243176,-500.0,0.000437,10]
[357656650,1744282243185,-500.0,0.000437,30]
[357656651,1744282243194,-158.0,0.00043705,120]
[357656652,1744282243203,-6384.32089891,0.00043705,3]
[357656653,1744282243213,-150.0,0.00043713,2]
[357656654,1744282243222,-150.0,0.00043714,2]
[357656655,1744282243231,-150.0,0.00043715,2]
[357656656,1744282243241,-158.0,0.00043715,120]
[357656657,1744282243251,-12768.6417978,0.00043725,3]
[357656658,1744282243260,-158.0,0.00043725,120]
[357656659,1744282243269,-151.6,0.00043726,2]
[357656660,1744282243278,-151.6,0.00043726,2]
[357656661,1744282243288,-151.6,0.00043726,2]
[357656662,1744282243298,-190.24967947,0.00043726,7]
[357656663,1744282243307,-1891.87992411,0.00043726,3]
[357656664,1744282243795,-777.9928537,0.00043726,3]
[357656666,1744282243807,-1225.178743,0.00043726,3]
[357656679,1744282244074,-2500.0,0.00042572,2]
[357656680,1744282244084,-8873.59027699,0.00043726,3]
[357656681,1744282244094,-500.0,0.00043734,10]
[357656682,1744282244103,-500.0,0.00043735,10]
[357656683,1744282244113,-500.0,0.00043735,10]
[357656684,1744282244123,-195.39014694,0.00043735,10]
[357656685,1744282244133,-500.0,0.00043735,10]
[357656686,1744282244143,-151.0,0.00043735,14]
[357656687,1744282244152,-151.0,0.00043735,14]
[357656688,1744282244163,-151.0,0.00043735,14]
[357656689,1744282244172,-151.0,0.00043735,14]
[357656690,1744282244182,-151.61118,0.00043735,14]
[357656691,1744282244191,-151.0,0.00043735,14]
[357656692,1744282244201,-252.871659,0.00043735,14]
[357656693,1744282244212,-252.871659,0.00043735,14]
[357656694,1744282244222,-151.0,0.00043735,14]
[357656695,1744282244231,-151.0,0.00043735,14]
[357656696,1744282244241,-500.0,0.00043735,120]
[357656697,1744282244251,-500.0,0.00043735,120]
[357656698,1744282244260,-500.0,0.00043735,120]
[357656699,1744282244270,-500.0,0.00043735,120]
[357656700,1744282244280,-500.0,0.00043735,120]
[357656701,1744282244290,-500.0,0.00043735,120]
[357656702,1744282244300,-500.0,0.00043735,120]
[357656703,1744282244310,-150.0,0.00043735,30]
[357656704,1744282244319,-150.0,0.00043735,2]
[357656705,1744282244329,-150.0,0.00043735,3]
[357656706,1744282244338,-150.0,0.00043735,3]
[357656707,1744282244348,-404.40665766,0.00043735,2]
[357656708,1744282244415,-16319.993472,0.00043735,2]
[357656764,1744282246394,-151.0,0.00039153,2]
[357656765,1744282246404,-166.56095123,0.00043735,120]
[357656766,1744282246413,-1293.39220123,0.00043735,2]
[357656767,1744282246423,-837.54512054,0.00043735,2]
[357656768,1744282246432,-2528.71784062,0.00043736,30]
[357656769,1744282246447,-330.0,0.00043736,30]
[357656770,1744282246558,-1248.14272592,0.00043736,30]
[357656771,1744282246611,-3715.37671444,0.00043736,30]
[357656772,1744282246755,-38.18895232,0.00043736,30]
[357656819,1744283244134,-198.95,0.00026849,2]
[357656820,1744283244156,-198.95,0.00032646,2]
[357656821,1744283244177,-248.09813304,0.00035014,2]
[357656822,1744283244204,-251.90186696,0.00035014,2]
[357656823,1744283244225,-171.8101637,0.00038356,2]
[357656824,1744283244246,-198.95,0.00038443,2]
[357656825,1744283244267,-150.0,0.00041,2]
[357656826,1744283244288,-5.57932531,0.0004126,2]
[357656827,1744283245097,-494.42067469,0.0004126,2]
[357656828,1744283245118,-328.3,0.000413,2]
[357656829,1744283245139,-157.29,0.0004194,2]
[357656830,1744283245159,-43.95631832,0.00041987,2]
[357656834,1744283349092,-241.56192126,0.00019,2]
[357656836,1744283351192,-8.43807874,0.00019,2]
[357656837,1744283401033,641.52697281,0.00039163,30]
[357656884,1744283437825,-621.60353882,0.00039163,30]
[357656891,1744283439764,-1385.47993132,0.00039163,30]
[357656911,1744283446132,-2722.64318214,0.00039163,30]
[357656912,1744283446143,-380.29430226,0.0004,31]
[357656913,1744283446153,-848.82,0.00040256,2]
[357656914,1744283446163,-1000.0,0.00041,3]
[357656915,1744283446174,-448.94699351,0.000419,2]
[357656916,1744283446185,-57.02040945,0.00041921,2]
[357656917,1744283446198,-93.97959055,0.00041921,2]
[357656918,1744283446208,-208.85368168,0.00041987,2]
[357656919,1744283446217,-295.47,0.00042,2]
[357656920,1744283446226,-189.138654,0.00042033,120]
[357656921,1744283446236,-157.59,0.00042035,2]
[357656922,1744283446246,-193.95,0.00042133,2]
[357656923,1744283446256,-1143.05179103,0.00042204,2]
[357656924,1744283463344,217.0,0.00035,30]
[357656931,1744283909673,2000.0,0.00032,120]
[357656932,1744283938266,1000.0,0.00032,30]
[357656937,1744284342144,-1250.15243133,0.00019,2]
[357656938,1744284432120,-300.0,0.00018999,2]
[357656939,1744284432141,-6483.98574336,0.00019,2]
[357656940,1744284442089,-657.14515292,0.00019,2]
[357656941,1744284443100,-652.59261055,0.00019,2]
[357656947,1744284546114,-4596.90030182,0.00019,2]
[357656948,1744284546135,-502.97962126,0.00020333,2]
[357656949,1744284546155,-1100.0,0.00020999,2]
[357656950,1744284546178,-300.0,0.00020999,2]
[357656951,1744284546208,-11932.49605807,0.00021,2]
[357656952,1744284546228,-13909.73013833,0.00021,2]
[357656953,1744284546249,-420.0,0.00022842,2]
[357656954,1744284546270,-5000.00598322,0.00024,5]
[357656955,1744284546292,-587.0,0.00024847,2]
[357656956,1744284546313,-2308.78350445,0.00025,2]
[357656957,1744284546334,-711.14176069,0.00025,7]
[357656958,1744284546354,-271.69,0.00026849,2]
[357656959,1744284546374,-500.0,0.00027,2]
[357656960,1744284546395,-279.85356049,0.00027,2]
[357656961,1744284546417,-295.0,0.00027028,2]
[357656962,1744284546438,-7577.41594431,0.00029,2]
[357656963,1744284546460,-20653.38361896,0.0003,2]
[357656964,1744284554084,-25409.88863205,0.0003,2]
[357656965,1744284554105,-19383.15840286,0.0003,2]
[357656966,1744284554125,-4762.22188626,0.0003,2]
[357656967,1744284554154,-358.3945278,0.0003,2]
[357656968,1744284554177,-271.69,0.00032646,2]
[357656969,1744284554204,-772.41705734,0.00035,4]
[357656990,1744284638276,-271.69,0.00038443,2]
[357656992,1744284638286,-396.96103076,0.00039523,2]
[357656994,1744284638298,-452.63896924,0.00039523,2]
[357656996,1744284638308,-500.0,0.00039682,2]
[357656997,1744284638318,-152.0,0.00040349,3]
[357656998,1744284638328,-192.89,0.00041,59]
[357656999,1744284638337,-159.0,0.00041,14]
[357657000,1744284638347,-1000.0,0.00041,3]
[357657001,1744284638357,-152.0,0.00041231,4]
[357657002,1744284638366,-200.0,0.00041398,7]
[357657003,1744284638375,-157.59,0.000414,2]
[357657004,1744284638384,-1182.86,0.00041463,2]
[357657005,1744284638394,-1633.08,0.0004147,2]
[357657006,1744284638403,-787.68,0.00041483,30]
[357657007,1744284638413,-161.77,0.00041496,2]
[357657008,1744284638422,-157.29,0.00041556,2]
[357657009,1744284638431,-495.96,0.00041765,7]
[357657010,1744284638440,-193.95,0.00041766,2]
[357657011,1744284638450,-849.6,0.00041787,2]
[357657012,1744284638459,-280.0,0.00041844,60]
[357657013,1744284638468,-285.84288866,0.00041845,2]
[357657014,1744284638478,-5563.69,0.00041845,2]
[357657015,1744284638491,-17365.68,0.00041849,2]
[357657016,1744284638500,-200.0,0.00041891,2]
[357657017,1744284638509,-550.709,0.00041943,2]
[357657018,1744284638518,-599.401,0.00041943,2]
[357657019,1744284638527,-2045.0,0.00041943,2]
[357657020,1744284638536,-1388.545,0.00041943,2]
[357657021,1744284638545,-297.6,0.00041943,2]
[357657022,1744284638554,-904.153,0.00041943,2]
[357657023,1744284638563,-155.19,0.00041943,2]
[357657024,1744284638572,-1326.0,0.00041943,2]
[357657025,1744284638582,-373.1,0.00042,2]
[357657026,1744284638591,-174.67,0.00042022,120]
[357657027,1744284638600,-250.0,0.00042025,2]
[357657028,1744284638610,-1000.0,0.00042064,2]
[357657029,1744284638619,-949.32,0.00042081,2]
[357657030,1744284638628,-301.67,0.00042113,5]
[357657031,1744284638637,-152.0,0.00042113,5]
[357657032,1744284638647,-303.02,0.00042125,5]
[357657033,1744284638656,-303.2,0.00042125,5]
[357657034,1744284638665,-304.51,0.00042125,5]
[357657035,1744284638674,-303.57,0.00042171,5]
[357657036,1744284638683,-302.68,0.00042172,5]
[357657037,1744284638693,-300.6,0.00042172,5]
[357657038,1744284638701,-303.1,0.00042172,5]
[357657039,1744284638710,-304.77,0.00042172,5]
[357657040,1744284638719,-305.44,0.00042172,5]
[357657041,1744284638728,-305.06,0.00042172,5]
[357657042,1744284638737,-303.35,0.00042172,5]
[357657043,1744284638746,-301.2,0.00042172,5]
[357657044,1744284638755,-301.73,0.00042172,5]
[357657045,1744284638764,-304.93,0.00042172,5]
[357657046,1744284638773,-200.0,0.00042204,7]
[357657047,1744284638783,-200.0,0.00042204,7]
[357657048,1744284638792,-4004.54811609,0.0004225,30]
[357657049,1744284638801,-179.76,0.00042362,120]
[357657050,1744284638810,-1731.02,0.000424,2]
[357657051,1744284638819,-865.51,0.000424,2]
[357657052,1744284638828,-757.0210626,0.00042467,4]
[357657053,1744284638837,-499.99,0.000425,5]
[357657054,1744284638846,-302.91,0.00042567,5]
[357657055,1744284638855,-303.65,0.00042567,5]
[357657056,1744284638864,-304.57,0.00042567,5]